bitfinex-derivatives/quotes_BTCF0:USTF0_20250330
["timestamp","ask_amount","ask_price","bid_price","bid_amount"]
[1743354808542,0.00076,82372.0,82371.0,0.2435103]
[1743354809044,0.13376,82375.0,82374.0,0.1214315]
[1743354809230,0.1214272,82377.0,82376.0,0.0607136]
[1743354809436,0.1222272,82377.0,82376.0,0.1142536]
[1743354810239,0.1750272,82377.0,82376.0,0.1142536]
[1743354812336,0.2330272,82377.0,82376.0,0.1142536]
[1743354814035,0.1116,82377.0,82376.0,0.1142536]
[1743354815340,0.233027,82377.0,82376.0,0.1142536]
[1743354819446,0.122227,82377.0,82376.0,0.1142536]
[1743354819646,0.255947,82377.0,82376.0,0.1142536]
[1743354820946,0.313647,82377.0,82376.0,0.1142536]
[1743354821749,0.13452,82377.0,82376.0,0.1142536]
[1743354821950,0.24266706,82377.0,82376.0,0.1142536]
[1743354822449,0.10894706,82377.0,82376.0,0.1142536]
[1743354822646,0.10894706,82377.0,82376.0,0.1676536]
[1743354823847,0.23037406,82377.0,82376.0,0.1676536]
[1743354824941,0.23037406,82377.0,82376.0,0.5284536]
[1743354826455,0.23037406,82377.0,82376.0,0.1676536]
[1743354827652,0.23037406,82377.0,82376.0,0.2214536]
[1743354827953,0.10894706,82377.0,82376.0,0.2214536]
[1743354828255,0.23037406,82377.0,82376.0,0.2214536]
[1743354829159,0.122227,82377.0,82376.0,0.2214536]
[1743354831959,0.175627,82377.0,82376.0,0.2214536]
[1743354834353,0.175627,82377.0,82376.0,0.1680536]
[1743354835257,0.060723,82365.0,82361.0,0.0607247]
[1743354835559,0.1214477,82363.0,82362.0,0.0009021]
[1743354835759,0.1223677,82363.0,82362.0,0.0009021]
[1743354836059,0.5401677,82363.0,82362.0,0.0009021]
[1743354836268,0.5401677,82363.0,82362.0,0.0001821]
[1743354836456,0.5968677,82363.0,82362.0,0.0001821]
[1743354836759,0.60879827,82363.0,82362.0,0.0001821]
[1743354836954,0.60879827,82363.0,82334.0,0.0607445]
[1743354836955,0.1214698,82348.0,82334.0,0.0607445]
[1743354837151,0.25610981,82348.0,82347.0,0.00112575]
[1743354837459,0.25610981,82348.0,82347.0,0.00120575]
[1743354837460,0.61690981,82348.0,82347.0,0.00120575]
[1743354837856,0.72830981,82348.0,82347.0,0.00120575]
[1743354839367,0.73729957,82348.0,82347.0,0.00120575]
[1743354842355,0.73729957,82348.0,82347.0,0.05660575]
[1743354842556,0.8811803,82348.0,82347.0,0.05660575]
[1743354842758,0.8811803,82348.0,82347.0,0.05588575]
[1743354843055,0.8261803,82348.0,82347.0,0.10988575]
[1743354843566,0.8261803,82348.0,82347.0,1.60988575]
[1743354843754,0.8261803,82348.0,82347.0,1.61052575]
[1743354844466,0.8261803,82348.0,82347.0,0.11052575]
[1743354844668,0.8261803,82348.0,82347.0,0.10988575]
[1743354845059,0.8261803,82348.0,82347.0,0.11052575]
[1743354846669,0.68229957,82348.0,82347.0,0.11052575]
[1743354847666,0.68229957,82348.0,82347.0,0.10988575]
[1743354848261,0.68229957,82348.0,82347.0,0.05448575]
[1743354848458,0.68229957,82348.0,82347.0,0.00048575]
[1743354849563,0.68229957,82348.0,82339.0,0.0001821]
[1743354849564,0.1214816,82340.0,82339.0,0.0001821]
[1743354849765,0.12244161,82340.0,82339.0,0.0008621]
[1743354850357,0.23294161,82340.0,82339.0,0.0008621]
[1743354851470,0.59374161,82340.0,82339.0,0.0001821]
[1743354851666,0.23294161,82340.0,82339.0,0.0001821]
[1743354851870,0.23294161,82340.0,82339.0,0.0011021]
[1743354852066,0.23294161,82340.0,82339.0,0.0001821]
[1743354852465,0.17534161,82340.0,82339.0,0.1223052]
[1743354853269,0.12244161,82340.0,82339.0,0.1223052]
[1743354853470,0.46854992,82348.0,82347.0,0.1214713]
[1743354853670,0.46918992,82348.0,82347.0,0.1221913]
[1743354853975,0.46918992,82348.0,82347.0,1.6221913]
[1743354854276,0.22985972,82348.0,82347.0,1.6221913]
[1743354854465,0.22985972,82348.0,82347.0,1.7324913]
[1743354855874,0.1221098,82348.0,82347.0,0.2324913]
[1743354857576,0.00064,82348.0,82347.0,0.24432528]
[1743354857778,0.060732,82352.0,82351.0,0.1214639]
[1743354857971,0.1821959,82352.0,82351.0,0.1214639]
[1743354858178,0.1829159,82352.0,82351.0,0.1221839]
[1743354860570,0.00072,82352.0,82351.0,0.1221839]
[1743354861078,0.2552808,82356.0,82355.0,0.1214595]
[1743354861378,0.2552808,82356.0,82355.0,0.1222195]
[1743354861576,0.1224008,82356.0,82355.0,0.1222195]
[1743354863579,0.0009421,82356.0,82355.0,0.4830195]
[1743354864287,0.0008221,82356.0,82355.0,0.4830195]
[1743354864483,0.0001821,82356.0,82355.0,0.4830195]
[1743354865091,0.0008221,82356.0,82355.0,0.4830195]
[1743354866692,0.0001821,82356.0,82355.0,0.4830195]
[1743354875190,0.36110992,82370.0,82369.0,0.1214388]
[1743354875394,0.36174992,82370.0,82369.0,0.1220788]
[1743354875604,0.254,82370.0,82369.0,0.1220788]
[1743354876001,0.254,82370.0,82369.0,0.2434788]
[1743354876306,0.254,82370.0,82369.0,0.25548976]
[1743354877901,0.05914,82370.0,82369.0,0.25548976]
[1743354878914,0.0585,82370.0,82369.0,0.25548976]
[1743354879511,0.05914,82370.0,82369.0,0.25548976]
[1743354880016,0.0585,82370.0,82369.0,0.25548976]
[1743354883019,0.0004,82372.0,82371.0,0.1214359]
[1743354883210,0.0004,82372.0,82371.0,0.4828759]
[1743354884515,0.10793202,82378.0,82377.0,0.121427]
[1743354884713,0.10857202,82378.0,82377.0,0.122067]
[1743354885319,0.10857202,82378.0,82377.0,0.242267]
[1743354886813,0.10793202,82378.0,82377.0,0.242267]
[1743354888618,0.18016852,82389.0,82387.0,0.1214123]
[1743354888918,0.00104,82388.0,82387.0,0.4828523]
[1743354889323,0.05954,82388.0,82387.0,0.4828523]
[1743354889513,0.05954,82388.0,82387.0,2.1066523]
[1743354889816,0.0589,82388.0,82387.0,2.1066523]
[1743354892413,0.0589,82388.0,82387.0,0.6066523]
[1743354892619,0.05962,82388.0,82387.0,0.5452523]
[1743354893020,0.1810308,82388.0,82387.0,0.4828523]
[1743354893718,0.05962,82388.0,82387.0,0.4828523]
[1743354894419,0.05962,82388.0,82387.0,0.5421523]
[1743354894625,0.05962,82388.0,82387.0,0.6022523]
[1743354895023,0.0589,82388.0,82387.0,0.6022523]
[1743354895228,0.0004,82388.0,82387.0,0.6022523]
[1743354895727,0.0004,82388.0,82387.0,2.1022523]
[1743354896620,0.00018047,82396.0,82387.0,1.98084]
[1743354896824,0.00018047,82396.0,82395.0,0.4822005]
[1743354897127,0.00018047,82396.0,82395.0,0.4828405]
[1743354897519,0.00018047,82396.0,82395.0,0.6085405]
[1743354898228,0.00018047,82396.0,82395.0,0.6204931]
[1743354899123,0.1213718,82415.0,82403.0,0.1213887]
[1743354899322,0.0593,82409.0,82403.0,0.4828287]
[1743354899528,0.0618,82408.0,82403.0,1.9828287]
[1743354900027,0.0618,82408.0,82403.0,2.1055287]
[1743354901117,0.18016852,82413.0,82403.0,0.6055287]
[1743354901534,0.1211,82412.0,82403.0,2.1055287]
[1743354901725,0.1211,82412.0,82411.0,0.121377]
[1743354901928,0.18016852,82413.0,82412.0,0.1213755]
[1743354902125,0.18080852,82413.0,82412.0,0.2424755]
[1743354902323,0.18080852,82413.0,82412.0,0.3044555]
[1743354902529,0.00064,82413.0,82412.0,0.3044555]
[1743354903224,0.0619,82417.0,82416.0,0.1213696]
[1743354903528,0.06254,82417.0,82416.0,0.1220096]
[1743354903730,0.06254,82417.0,82416.0,0.13411612]
[1743354904527,0.06054,82417.0,82416.0,0.13411612]
[1743354904832,0.0599,82417.0,82416.0,0.13411612]
[1743354905027,0.0004,82420.0,82419.0,0.1213652]
[1743354905325,0.00108,82420.0,82419.0,0.4828452]
[1743354906517,0.88168,82432.0,82431.0,0.1213475]
[1743354906720,0.1213457,82433.0,82432.0,0.121346]
[1743354906926,0.1219857,82433.0,82432.0,0.180186]
[1743354907129,0.61596733,82433.0,82432.0,0.00064]
[1743354907425,0.61596733,82433.0,82401.0,0.3608]
[1743354907426,0.1213578,82424.0,82422.0,0.12136]
[1743354907615,0.4830778,82424.0,82421.0,0.1213612]
[1743354907819,0.4830778,82424.0,82418.0,0.0606828]
[1743354908035,0.1213755,82412.0,82408.0,0.1213805]
[1743354908235,0.1221755,82412.0,82411.0,0.1222138]
[1743354908426,0.1221755,82412.0,82411.0,0.1213738]
[1743354908918,0.1221755,82412.0,82411.0,0.243388]
[1743354909118,0.2457755,82412.0,82411.0,0.243388]
[1743354910827,0.1244,82412.0,82411.0,0.363788]
[1743354913627,0.2457755,82412.0,82411.0,0.363788]
[1743354913829,0.2457755,82412.0,82411.0,0.243388]
[1743354916931,0.2457755,82412.0,82411.0,0.00064]
[1743354916932,0.3790555,82412.0,82411.0,0.00064]
[1743354917127,0.1213873,82404.0,82400.0,0.1213923]
[1743354917333,0.1221873,82404.0,82403.0,0.00098198]
[1743354917935,0.2480873,82404.0,82403.0,0.00098198]
[1743354918633,0.2480873,82404.0,82403.0,0.12237068]
[1743354919345,0.2480873,82404.0,82403.0,0.18417068]
[1743354919540,0.2480873,82404.0,82403.0,0.24777068]
[1743354919938,0.1267,82404.0,82403.0,0.24777068]
[1743354920135,0.0008,82404.0,82403.0,0.66817068]
[1743354920334,0.1213827,82408.0,82407.0,0.1213828]
[1743354920540,0.1221827,82408.0,82407.0,1.6220228]
[1743354920950,0.1213827,82408.0,82407.0,1.6220228]
[1743354921430,0.1213781,82412.0,82411.0,0.121377]
[1743354921636,0.1213781,82412.0,82411.0,0.482897]
[1743354922145,0.0606852,82416.0,82412.0,0.1213755]
[1743354922342,0.18096852,82413.0,82412.0,0.2434755]
[1743354922544,0.18096852,82413.0,82412.0,0.2441155]
[1743354922842,0.30234252,82413.0,82412.0,0.2441155]
[1743354923241,0.122174,82413.0,82412.0,0.2441155]
[1743354923438,0.121374,82413.0,82412.0,0.2441155]
[1743354924036,0.0606857,82415.0,82414.0,0.1213725]
[1743354924246,0.0606857,82415.0,82414.0,0.1220125]
[1743354924647,0.0614857,82415.0,82414.0,0.1220125]
[1743354924943,0.0008,82415.0,82414.0,0.1220125]
[1743354925141,0.1213708,82416.0,82415.0,0.0606849]
[1743354925346,0.1222108,82416.0,82415.0,0.0613649]
[1743354925549,0.1222108,82416.0,82415.0,0.2430649]
[1743354928238,0.1222108,82416.0,82415.0,0.25501931]
[1743354929039,0.00084,82416.0,82415.0,0.25501931]
[1743354929239,0.1820532,82418.0,82417.0,0.1213666]
[1743354929440,0.1828532,82418.0,82417.0,0.1220066]
[1743354930051,0.2445532,82418.0,82417.0,0.1220066]
[1743354930346,0.3080532,82418.0,82417.0,0.1220066]
[1743354930545,0.3080532,82418.0,82417.0,0.00064]
[1743354930752,0.3080532,82418.0,82417.0,0.1220081]
[1743354931040,0.3080532,82418.0,82403.0,0.12156588]
[1743354931041,0.1213873,82404.0,82403.0,0.12156588]
[1743354931246,0.1213873,82404.0,82403.0,0.12220588]
[1743354931451,0.2465847,82406.0,82405.0,0.1213858]
[1743354931643,0.1262,82406.0,82405.0,0.1220258]
[1743354931839,0.2465843,82406.0,82405.0,0.1220258]
[1743354932145,0.2475843,82406.0,82405.0,0.1220258]
[1743354933551,0.1262,82406.0,82405.0,0.1220258]
[1743354933745,0.0627,82406.0,82405.0,0.1220258]
[1743354933941,0.25457,82418.0,82405.0,0.00064]
[1743354934256,0.001,82418.0,82417.0,0.1213681]
[1743354934550,0.001,82418.0,82417.0,0.1220081]
[1743354934845,0.00018158,82420.0,82419.0,0.1213652]
[1743354935050,0.00018158,82420.0,82419.0,1.6220052]
[1743354941543,0.0596,82430.0,82429.0,0.1213504]
[1743354941747,0.06064001,82430.0,82429.0,0.1220304]
[1743354942743,0.06064001,82430.0,82429.0,0.1847304]
[1743354943251,0.06064001,82430.0,82429.0,0.19669451]
[1743354943451,0.0596,82430.0,82429.0,0.19669451]
[1743354944144,0.0606,82430.0,82429.0,0.19669451]
[1743354946254,0.0596,82430.0,82429.0,0.19669451]
[1743354946746,0.0606,82430.0,82429.0,0.19669451]
[1743354947855,0.0606,82430.0,82429.0,0.25979451]
[1743354951848,0.0596,82430.0,82429.0,0.25979451]
[1743354952056,0.0606,82430.0,82429.0,0.25979451]
[1743354952556,0.0596,82430.0,82429.0,0.25979451]
[1743354952749,0.181949,82430.0,82429.0,0.00068]
[1743354952950,0.181949,82430.0,82429.0,0.1213504]
[1743354953156,0.181949,82430.0,82429.0,0.1219904]
[1743354954058,0.0606,82430.0,82429.0,0.1219904]
[1743354954261,0.0596,82430.0,82429.0,0.1219904]
[1743354954447,0.0596,82430.0,82429.0,0.2419904]
[1743354954650,0.0606,82430.0,82429.0,0.2419904]
[1743354954851,0.0606,82430.0,82429.0,1.7419904]
[1743354955047,0.0596,82430.0,82429.0,1.7419904]
[1743354955555,0.180949,82430.0,82429.0,1.7419904]
[1743354955756,0.242349,82430.0,82429.0,0.2419904]
[1743354955956,0.243349,82430.0,82429.0,0.2419904]
[1743354956357,0.243349,82430.0,82429.0,1.7419904]
[1743354956659,0.0606722,82434.0,82433.0,0.1213446]
[1743354956957,0.0606722,82434.0,82433.0,0.1219846]
[1743354958053,0.1188722,82434.0,82433.0,0.1843846]
[1743354958249,0.0582,82434.0,82433.0,0.1843846]
[1743354958449,0.1795431,82434.0,82433.0,0.1843846]
[1743354958647,0.1806231,82434.0,82433.0,0.1843846]
[1743354959047,0.0582,82434.0,82433.0,0.1843846]
[1743354960766,0.0004,82436.0,82435.0,0.1213416]
[1743354960968,0.0014,82436.0,82435.0,0.4827816]
[1743354961170,0.0014,82436.0,82435.0,0.6062816]
[1743354963058,0.1860401,82436.0,82435.0,0.6062816]
[1743354963257,0.1213563,82425.0,82421.0,0.36098198]
[1743354963558,0.1213563,82425.0,82424.0,0.1219978]
[1743354963866,0.1226763,82425.0,82424.0,0.1219978]
[1743354964068,0.1226763,82425.0,82424.0,0.1819978]
[1743354964455,0.1832763,82425.0,82424.0,0.05934]
[1743354964655,0.1832763,82425.0,82424.0,0.1806978]
[1743354964867,0.1832763,82425.0,82424.0,0.3984558]
[1743354965264,0.1832763,82425.0,82424.0,0.218398]
[1743354965565,0.2320763,82425.0,82424.0,0.3397558]
[1743354966265,0.1832763,82425.0,82424.0,0.3397558]
[1743354966971,0.1832763,82425.0,82424.0,0.4548558]
[1743354967864,0.12252,82425.0,82424.0,0.4548558]
[1743354968168,0.1213481,82431.0,82430.0,0.121349]
[1743354968370,0.12254811,82431.0,82430.0,0.122069]
[1743354968562,0.12254811,82431.0,82430.0,1.622069]
[1743354968769,0.12254811,82431.0,82430.0,1.744969]
[1743354969264,0.00120001,82431.0,82430.0,1.744969]
[1743354969454,0.21620223,82432.0,82431.0,0.1213475]
[1743354969655,0.21620223,82432.0,82431.0,0.1220675]
[1743354969859,0.21620223,82432.0,82431.0,0.2449675]
[1743354970063,0.33882823,82432.0,82431.0,0.2449675]
[1743354970269,0.46142823,82432.0,82431.0,1.7449675]
[1743354970458,0.40104823,82432.0,82431.0,1.7449675]
[1743354971163,0.0606639,82445.0,82435.0,0.1213416]
[1743354971164,0.14459314,82440.0,82435.0,0.1213416]
[1743354971370,0.14459314,82440.0,82439.0,0.1213357]
[1743354971561,0.14579315,82440.0,82439.0,0.1219757]
[1743354972163,0.14579315,82440.0,82439.0,0.13425949]
[1743354972368,0.14579315,82440.0,82439.0,0.19325949]
[1743354972572,0.14579315,82440.0,82439.0,1.69325949]
[1743354972763,0.14459314,82440.0,82439.0,1.69325949]
[1743354973468,0.18074142,82446.0,82445.0,0.1213269]
[1743354973666,0.21620223,82451.0,82450.0,0.1213195]
[1743354973862,0.12214224,82451.0,82450.0,0.1225595]
[1743354974062,0.12090223,82451.0,82450.0,0.1225595]
[1743354974367,0.1212977,82465.0,82462.0,0.06065]
[1743354974567,0.1221377,82465.0,82464.0,0.1212975]
[1743354974759,0.1212989,82464.0,82463.0,0.1219]
[1743354974962,0.1221389,82464.0,82463.0,0.12254]
[1743354975366,0.33895352,82464.0,82463.0,0.25596268]
[1743354975665,0.33895352,82464.0,82463.0,0.12254]
[1743354975969,0.39995352,82464.0,82463.0,0.1219]
[1743354976270,0.39995352,82464.0,82463.0,0.12262]
[1743354976767,0.33895352,82464.0,82463.0,0.12262]
[1743354976969,0.21765462,82464.0,82463.0,0.3063204]
[1743354977667,0.33895352,82464.0,82463.0,0.3063204]
[1743354979361,0.33895352,82464.0,82463.0,0.6671204]
[1743354980159,0.21765462,82464.0,82463.0,0.6671204]
[1743354980571,0.00084,82464.0,82463.0,0.6671204]
[1743354980779,0.1212984,82465.0,82464.0,0.1212989]
[1743354980976,0.0004,82468.0,82467.0,0.1212945]
[1743354981178,0.0004,82468.0,82467.0,0.1219745]
[1743354981379,0.1223331,82468.0,82467.0,0.1219745]
[1743354981676,0.1216931,82468.0,82467.0,0.1219745]
[1743354981873,0.1223331,82468.0,82467.0,0.1219745]
[1743354982273,0.1216931,82468.0,82467.0,0.1219745]
[1743354982472,0.1223331,82468.0,82467.0,1.6219745]
[1743354982670,0.0606422,82474.0,82467.0,1.6219745]
[1743354982671,0.0606412,82476.0,82467.0,1.50068]
[1743354982866,0.0612812,82476.0,82475.0,0.1819184]
[1743354983381,0.0004,82484.0,82483.0,0.121271]
[1743354983575,0.1216695,82484.0,82483.0,0.482071]
[1743354983780,0.1216695,82484.0,82483.0,0.601871]
[1743354983977,0.1216695,82484.0,82483.0,0.241071]
[1743354984677,0.1216695,82484.0,82483.0,0.25289172]
[1743354985475,0.1216695,82484.0,82483.0,0.241071]
[1743354987376,0.0004,82484.0,82483.0,0.241071]
[1743354987583,0.3608,82494.0,82493.0,0.1212563]
[1743354988080,0.1212548,82494.0,82493.0,1.6818834]
[1743354988274,0.1212548,82494.0,82493.0,1.5606271]
[1743354988480,0.1212548,82494.0,82493.0,1.5614671]
[1743354989280,0.2418548,82494.0,82493.0,1.6799671]
[1743354989489,0.1787548,82494.0,82493.0,1.6799671]
[1743354990383,0.1787548,82494.0,82493.0,0.00084]
[1743354990573,0.1212666,82486.0,82483.0,0.0621]
[1743354990773,0.1221466,82486.0,82485.0,0.00102187]
[1743354991288,0.1221466,82486.0,82485.0,0.12228997]
[1743354991488,0.2427466,82486.0,82485.0,0.12228997]
[1743354991983,0.3755866,82486.0,82485.0,0.00102187]
[1743354992182,0.1212989,82466.0,82465.0,0.1212907]
[1743354992489,0.1212989,82466.0,82465.0,0.2434261]
[1743354992679,0.1212989,82466.0,82465.0,0.00084]
[1743354992874,0.1221389,82466.0,82465.0,0.00084]
[1743354993084,0.2383989,82466.0,82465.0,0.00084]
[1743354993277,0.2392389,82466.0,82465.0,0.00084]
[1743354993678,0.1212989,82464.0,82463.0,0.1212997]
[1743354993982,0.1221789,82464.0,82463.0,0.1222597]
[1743354994181,0.2541389,82464.0,82463.0,0.1222597]
[1743354994383,0.1221389,82464.0,82463.0,0.1222597]
[1743354994679,0.254095,82467.0,82465.0,0.1212975]
[1743354994880,0.254095,82467.0,82466.0,0.245796]
[1743354995087,0.181435,82467.0,82466.0,0.246636]
[1743354996592,0.181435,82467.0,82466.0,1.746636]
[1743354996778,0.180595,82467.0,82466.0,1.746636]
[1743354997891,0.180595,82467.0,82466.0,1.62534]
[1743354998093,0.180595,82467.0,82466.0,1.746636]
[1743354999995,0.180595,82467.0,82466.0,1.62534]
[1743355000193,0.180595,82467.0,82466.0,0.00084]
[1743355000388,0.605035,82467.0,82466.0,0.00084]
[1743355000587,0.121296,82466.0,82465.0,0.121297]
[1743355000787,0.122136,82466.0,82465.0,0.122137]
[1743355000983,0.180636,82466.0,82465.0,0.122137]
[1743355003493,0.122136,82466.0,82465.0,0.122137]
[1743355003690,0.00084,82466.0,82465.0,0.122137]
[1743355003888,0.00084,82466.0,82465.0,0.605037]
[1743355004192,0.12146669,82474.0,82472.0,0.1212857]
[1743355004193,0.1212866,82473.0,82472.0,0.1212857]
[1743355004397,0.1212866,82473.0,82472.0,0.4829257]
[1743355004593,0.1219266,82473.0,82472.0,0.4829257]
[1743355005896,0.1219266,82473.0,82472.0,0.49519647]
[1743355006393,0.00064,82473.0,82472.0,0.49519647]
[1743355006697,0.00018149,82474.0,82473.0,0.1212857]
[1743355006898,0.00110149,82474.0,82473.0,0.1212857]
[1743355007098,0.00110149,82474.0,82473.0,0.1222057]
[1743355008192,0.12238569,82474.0,82473.0,0.1222057]
[1743355009288,0.18018569,82474.0,82473.0,0.1222057]
[1743355009998,0.18018569,82474.0,82473.0,0.00092]
[1743355010296,0.1212989,82464.0,82463.0,0.49441025]
[1743355010497,0.1222589,82464.0,82463.0,0.49525025]
[1743355010698,0.1212989,82464.0,82463.0,0.49525025]
[1743355011198,0.1212989,82464.0,82463.0,0.4829404]
[1743355011402,0.1816389,82464.0,82463.0,0.4829404]
[1743355011699,0.1816389,82464.0,82463.0,1.9829404]
[1743355011901,0.1807989,82464.0,82463.0,1.9829404]
[1743355012097,0.1807989,82464.0,82463.0,1.86164]
[1743355012398,0.3135589,82464.0,82463.0,0.36164]
[1743355012593,0.3143989,82464.0,82463.0,0.36164]
[1743355012897,0.3767989,82464.0,82463.0,0.36164]
[1743355013699,0.3767989,82464.0,82463.0,0.4829404]
[1743355014001,0.3767989,82464.0,82463.0,0.1221404]
[1743355014197,0.1845389,82464.0,82463.0,0.1221404]
[1743355014397,0.3172989,82464.0,82463.0,0.1221404]
[1743355014997,0.1221389,82464.0,82463.0,0.1221404]
[1743355017500,0.1221389,82464.0,82463.0,0.1800404]
[1743355017904,0.1221389,82464.0,82463.0,0.2422404]
[1743355018105,0.1221389,82464.0,82463.0,0.12094]
[1743355018310,0.1221389,82464.0,82463.0,0.06304]
[1743355018605,0.1221389,82464.0,82463.0,0.1835004]
[1743355018798,0.2439389,82464.0,82463.0,0.1843804]
[1743355020503,0.2439389,82464.0,82463.0,0.1221804]
[1743355020700,0.2439389,82464.0,82463.0,0.1213004]
[1743355021107,0.2439389,82464.0,82463.0,0.00088]
[1743355021305,0.2439389,82464.0,82460.0,0.0597]
[1743355021306,0.1213034,82461.0,82460.0,0.0597]
[1743355021612,0.1219434,82461.0,82460.0,0.06054]
[1743355021813,0.4827434,82461.0,82460.0,0.00084]
[1743355022306,0.4827434,82461.0,82459.0,0.00048509]
[1743355022307,0.1213048,82460.0,82459.0,0.00048509]
[1743355022503,0.2425448,82460.0,82459.0,0.00048509]
[1743355023101,0.2425448,82460.0,82459.0,0.00132509]
[1743355023503,0.2425448,82460.0,82459.0,0.00048509]
[1743355023807,0.3752648,82460.0,82459.0,0.00048509]
[1743355024111,0.3752648,82460.0,82459.0,0.00132509]
[1743355025315,0.3752648,82460.0,82459.0,0.00048509]
[1743355025515,0.3746248,82460.0,82459.0,0.00048509]
[1743355025813,0.3746248,82460.0,82459.0,0.12179139]
[1743355027112,0.3746248,82460.0,82459.0,0.00048509]
[1743355030412,0.3754648,82460.0,82459.0,0.00132509]
[1743355031717,0.3754648,82460.0,82459.0,0.12263139]
[1743355032118,0.3754648,82460.0,82459.0,0.00132509]
[1743355032525,0.7362648,82460.0,82459.0,0.00132509]
[1743355032715,0.6035448,82460.0,82459.0,0.00132509]
[1743355032914,0.3754248,82460.0,82459.0,0.00132509]
[1743355033523,0.3754248,82460.0,82459.0,0.12263139]
[1743355033817,0.3754248,82460.0,82459.0,0.24093139]
[1743355034017,0.1221448,82460.0,82459.0,0.24093139]
[1743355034221,0.00084,82460.0,82459.0,0.24093139]
[1743355034517,0.181946,82466.0,82465.0,0.1212975]
[1743355034711,0.182826,82466.0,82465.0,0.1343617]
[1743355034914,0.182826,82466.0,82465.0,1.6343617]
[1743355035120,0.182826,82466.0,82465.0,0.1343617]
[1743355035521,0.182826,82466.0,82465.0,1.6343617]
[1743355035721,0.182826,82466.0,82465.0,1.9951617]
[1743355035915,0.181946,82466.0,82465.0,1.9951617]
[1743355036112,0.181946,82466.0,82465.0,1.6343617]
[1743355036723,0.181946,82466.0,82465.0,1.6222175]
[1743355037124,0.182906,82466.0,82465.0,1.6222175]
[1743355037924,0.437586,82466.0,82465.0,1.50092]
[1743355038123,0.437586,82466.0,82465.0,0.00092]
[1743355038325,0.1213048,82460.0,82459.0,0.00048509]
[1743355038521,0.4827448,82460.0,82459.0,0.00048509]
[1743355039118,0.6584448,82460.0,82459.0,0.00048509]
[1743355041820,0.6584448,82460.0,82459.0,0.12179139]
[1743355041821,0.2976448,82460.0,82459.0,0.12179139]
[1743355042025,0.1219448,82460.0,82459.0,0.12179139]
[1743355042322,0.1219448,82460.0,82459.0,0.12263139]
[1743355042323,0.00064,82460.0,82459.0,0.12263139]
[1743355042828,0.1213024,82462.0,82461.0,0.1213034]
[1743355043027,0.1213024,82462.0,82461.0,0.1221834]
[1743355043227,0.1219424,82462.0,82461.0,0.1221834]
[1743355043422,0.1219424,82462.0,82461.0,1.6221834]
[1743355043625,0.1213024,82462.0,82461.0,1.6221834]
[1743355044226,0.30215768,82467.0,82466.0,0.121296]
[1743355044430,0.1212968,82467.0,82466.0,0.122136]
[1743355047915,0.1212968,82467.0,82466.0,0.184636]
[1743355048119,0.1221368,82467.0,82466.0,0.184636]
[1743355048728,0.1212968,82467.0,82466.0,0.184636]
[1743355050031,0.1212968,82467.0,82466.0,0.06334]
[1743355050228,0.2416168,82467.0,82466.0,0.0625]
[1743355050432,0.2416168,82467.0,82466.0,0.00084]
[1743355050629,0.1213019,82462.0,82461.0,0.0625]
[1743355050831,0.2539019,82462.0,82461.0,0.06334]
[1743355051029,0.2547419,82462.0,82461.0,0.06334]
[1743355051539,0.3742419,82462.0,82461.0,0.06334]
[1743355052321,0.2547419,82462.0,82461.0,0.1846434]
[1743355052527,0.1221419,82462.0,82461.0,0.1846434]
[1743355052923,0.1221419,82462.0,82461.0,0.2431434]
[1743355057930,0.1221419,82462.0,82461.0,0.12184]
[1743355058132,0.1845419,82462.0,82461.0,0.2431434]
[1743355058337,0.1221419,82462.0,82461.0,0.2431434]
[1743355059035,0.00084,82462.0,82461.0,1.7431434]
[1743355059340,0.26649522,82462.0,82461.0,1.9250978]
[1743355059835,0.26649522,82462.0,82461.0,1.8037944]
[1743355060034,0.26713522,82462.0,82461.0,1.62184]
[1743355060240,0.26713522,82462.0,82461.0,1.7431434]
[1743355060629,0.38963522,82462.0,82461.0,1.7431434]
[1743355060831,0.38963522,82462.0,82461.0,1.62184]
[1743355061341,0.38963522,82462.0,82461.0,0.12184]
[1743355062431,0.2444419,82462.0,82461.0,0.12184]
[1743355062738,0.2444419,82462.0,82461.0,0.00084]
[1743355062931,0.1213048,82460.0,82459.0,0.00048509]
[1743355063242,0.6153048,82460.0,82459.0,0.00048509]
[1743355066038,0.6742906,82460.0,82459.0,0.00048509]
[1743355066739,0.1213284,82444.0,82426.0,0.3608]
[1743355066949,0.1219684,82444.0,82443.0,0.12245498]
[1743355067444,0.13112331,82444.0,82443.0,0.12245498]
[1743355067841,0.13112331,82444.0,82443.0,0.00112518]
[1743355068541,0.24992331,82444.0,82443.0,0.00112518]
[1743355068742,0.24992331,82444.0,82443.0,0.00048518]
[1743355070752,0.1213401,82436.0,82435.0,0.00018187]
[1743355070946,0.6153401,82436.0,82435.0,0.00018187]
[1743355071544,0.7937401,82436.0,82435.0,0.00018187]
[1743355072034,0.1213519,82428.0,82425.0,0.217758]
[1743355072240,0.49483679,82428.0,82427.0,0.00112527]
[1743355072445,0.49483679,82428.0,82425.0,0.217758]
[1743355072446,0.1213549,82426.0,82425.0,0.217758]
[1743355072654,0.2547549,82426.0,82425.0,0.218598]
[1743355073155,0.3733549,82426.0,82425.0,0.218598]
[1743355073343,0.49467657,82426.0,82425.0,0.218598]
[1743355074542,0.49467657,82426.0,82417.0,0.00018198]
[1743355074543,0.1213666,82418.0,82417.0,0.00018198]
[1743355074749,0.4833266,82418.0,82417.0,0.00018198]
[1743355074950,0.1213755,82412.0,82401.0,0.217758]
[1743355075243,0.2550955,82412.0,82407.0,0.0619]
[1743355075444,0.2550955,82412.0,82408.0,0.0573]
[1743355075950,0.3763955,82412.0,82411.0,0.00116537]
[1743355076249,0.3763955,82412.0,82411.0,0.00048537]
[1743355080445,0.3763955,82412.0,82411.0,0.00112537]
[1743355080655,0.3763955,82412.0,82411.0,0.00048537]
[1743355081155,0.3763955,82412.0,82411.0,0.00112537]
[1743355082155,0.3763955,82412.0,82411.0,0.00048537]
[1743355082357,0.1213873,82404.0,82403.0,0.00018198]
[1743355082650,0.4821873,82404.0,82403.0,0.00130198]
[1743355082855,0.48330731,82404.0,82403.0,0.00130198]
[1743355083268,0.48330731,82404.0,82403.0,0.00018198]
[1743355083943,0.48330731,82404.0,82403.0,0.00082198]
[1743355084550,0.49280249,82404.0,82403.0,0.00082198]
[1743355086055,0.48330731,82404.0,82403.0,0.00082198]
[1743355086357,0.50259406,82404.0,82403.0,0.00082198]
[1743355086660,0.1214226,82381.0,82380.0,0.1214223]
[1743355086859,0.1214226,82381.0,82380.0,0.1220623]
[1743355087160,0.1227826,82381.0,82380.0,1.63438298]
[1743355087361,0.1214226,82381.0,82380.0,1.63438298]
[1743355087653,0.0607097,82383.0,82382.0,0.1214197]
[1743355087860,0.06959345,82383.0,82382.0,0.1220597]
[1743355088547,0.06959345,82383.0,82382.0,0.1815597]